bitfinex/quotes_ETHUSD_20250507
["timestamp","ask_amount","ask_price","bid_price","bid_amount"]
[1746577586467,0.47546287,1841.3,1840.8,5.8368939]
[1746577586671,0.47546287,1841.3,1840.9,5.43187356]
[1746577587106,0.5758,1841.5,1841.0,0.04622998]
[1746577587407,0.5758,1841.5,1840.9,0.04621652]
[1746577587704,0.06788169,1841.4,1841.0,5.43170872]
[1746577587889,5.43108272,1841.3,1840.8,0.40463186]
[1746577588088,0.0678962,1841.3,1840.8,0.40463186]
[1746577588305,1.05832399,1841.5,1841.1,5.43132435]
[1746577588608,3.0,1841.4,1841.1,5.43132435]
[1746577588809,5.43105323,1841.3,1840.9,5.43200206]
[1746577588965,6.0420485,1841.3,1840.8,5.83686636]
[1746577589165,6.0420485,1841.3,1840.9,5.43208131]
[1746577589801,11.47325682,1841.3,1840.8,0.40463186]
[1746577589967,5.43188417,1841.0,1840.8,0.40463186]
[1746577590171,0.5758,1840.9,1840.8,0.40463186]
[1746577590501,9.00792559,1840.9,1840.8,0.40463186]
[1746577590804,10.52662477,1840.9,1840.8,0.0755618]
[1746577591374,10.9334665,1840.9,1840.8,0.0755618]
[1746577591794,11.4834665,1840.9,1840.8,0.0755618]
[1746577591988,11.41555382,1840.9,1840.8,0.0755618]
[1746577592313,10.86555382,1840.9,1840.8,0.0755618]
[1746577592509,10.93347103,1840.9,1840.8,0.0755618]
[1746577593531,11.48347103,1840.9,1840.8,0.0755618]
[1746577593819,10.86555382,1840.9,1840.8,0.0755618]
[1746577594020,10.93347698,1840.9,1840.8,0.0755618]
[1746577594236,11.48347698,1840.9,1840.8,0.0755618]
[1746577594382,11.41555382,1840.9,1840.8,0.0755618]
[1746577595130,5.43448725,1840.1,1840.0,10.637742]
[1746577595427,8.43448725,1840.1,1840.0,10.637742]
[1746577595712,8.5024267,1840.1,1840.0,10.637742]
[1746577596677,3.0,1840.1,1840.0,10.637742]
[1746577596927,8.43448725,1840.1,1840.0,10.637742]
[1746577597080,3.06793926,1840.1,1840.0,10.637742]
[1746577597280,9.41024082,1840.1,1840.0,10.637742]
[1746577598528,9.41024082,1840.1,1840.0,9.50001244]
[1746577599022,9.8246395,1840.1,1840.0,9.50001244]
[1746577599621,9.8246395,1840.1,1840.0,8.36201244]
[1746577600287,3.48233794,1840.1,1840.0,8.36201244]
[1746577600499,8.84888593,1840.1,1840.0,8.36201244]
[1746577600701,3.48233551,1840.1,1840.0,8.36201244]
[1746577600922,8.91682276,1840.1,1840.0,8.36201244]
[1746577601700,12.47852088,1840.1,1840.0,8.36201244]
[1746577602025,3.41439868,1840.1,1840.0,8.36201244]
[1746577602227,0.41439868,1840.1,1840.0,8.36201244]
[1746577602522,0.06793559,1840.2,1840.0,8.36201244]
[1746577603313,5.43448725,1840.1,1840.0,8.36201244]
[1746577603739,9.01028725,1840.1,1840.0,8.36201244]
[1746577603944,10.46152991,1840.1,1840.0,8.36201244]
[1746577604146,0.5758,1839.9,1839.2,5.43702702]
[1746577604296,0.5758,1839.9,1839.3,5.43673984]
[1746577604297,3.56169812,1839.6,1839.3,5.43673984]
[1746577604609,0.06796158,1839.5,1839.1,5.43731459]
[1746577604803,0.06796158,1839.5,1839.3,5.43684857]
[1746577605007,0.06796158,1839.5,1839.2,5.43698913]
[1746577605208,0.06796158,1839.5,1839.0,5.48406032]
[1746577605403,0.06796158,1839.5,1839.2,5.43696765]
[1746577605598,0.06796158,1839.5,1839.1,5.43729486]
[1746577605797,0.06796158,1839.5,1839.3,5.43673465]
[1746577606019,0.06796158,1839.5,1839.3,5.43664575]
[1746577606333,0.40449602,1839.6,1839.4,5.43655539]
[1746577606508,0.06796177,1839.8,1839.4,5.43632227]
[1746577606693,3.06796177,1839.8,1839.5,5.43612709]
[1746577606891,3.06796177,1839.8,1839.4,5.43655172]
[1746577606892,6.41135262,1839.8,1839.4,5.43655172]
[1746577607129,3.0,1839.7,1839.2,0.8316]
[1746577607299,0.06795977,1839.6,1839.4,5.43641936]
[1746577607501,0.06795977,1839.6,1839.4,5.43636121]
[1746577607713,0.06795977,1839.6,1839.3,5.43662622]
[1746577607912,5.50396539,1839.6,1839.2,5.43705096]
[1746577608114,5.43671212,1839.4,1839.0,5.43758156]
[1746577608319,0.06797206,1839.3,1839.0,5.43756527]
[1746577608546,0.06797206,1839.3,1838.9,5.85121732]
[1746577608728,0.06797206,1839.3,1838.9,0.4133681]
[1746577608917,0.06797206,1839.3,1838.9,5.85114274]
[1746577609343,5.43718549,1839.2,1838.9,0.4133681]
[1746577609525,0.06797665,1839.1,1838.9,0.4133681]
[1746577609736,0.06797652,1839.2,1838.9,0.4133681]
[1746577610044,0.06797239,1839.3,1839.1,5.43744222]
[1746577610202,5.43737894,1839.2,1838.9,0.4133681]
[1746577610406,5.4377379,1839.0,1838.9,0.4133681]
[1746577610640,6.0135379,1839.0,1838.9,0.4133681]
[1746577610848,9.0135379,1839.0,1838.9,0.4133681]
[1746577611339,12.57523602,1839.0,1838.9,0.09250824]
[1746577612104,12.57523602,1839.0,1837.9,0.8086]
[1746577612105,9.00080531,1838.6,1838.2,5.44010366]
[1746577612303,9.00080531,1838.6,1838.0,5.44052201]
[1746577612304,0.64380022,1838.5,1838.0,5.44052201]
[1746577612503,5.43959513,1838.4,1838.0,5.44052201]
[1746577612704,0.06801067,1838.3,1838.1,5.44033966]
[1746577612899,0.06800641,1838.4,1838.0,5.4406964]
[1746577613208,0.06800641,1838.4,1838.0,5.44058619]
[1746577613418,0.06800641,1838.4,1838.0,5.44051523]
[1746577613602,0.06800641,1838.4,1838.1,5.44037743]
[1746577613798,0.06800641,1838.4,1837.9,5.44099243]
[1746577614036,0.97632447,1838.4,1838.0,5.4406396]
[1746577614242,0.97632447,1838.4,1837.8,8.345]
[1746577614243,0.06800641,1838.4,1837.8,8.345]
[1746577614442,0.06800641,1838.4,1838.1,5.44013299]
[1746577614641,0.06800641,1838.4,1837.9,5.44078058]
[1746577614841,5.91217686,1838.4,1837.9,5.44099243]
[1746577615067,5.91217686,1838.4,1837.8,8.345]
[1746577615068,3.06800641,1838.4,1837.8,8.345]
[1746577615384,5.50753436,1838.4,1838.0,5.44057647]
[1746577615554,5.43995098,1838.3,1837.9,5.44086908]
[1746577615755,0.06800697,1838.2,1837.9,5.44086908]
[1746577615936,0.06800697,1838.2,1837.8,8.345]
[1746577616141,0.06800697,1838.2,1837.8,13.7861303]
[1746577616339,5.50783004,1838.3,1837.9,5.44075525]
[1746577616575,1.1627575,1838.3,1838.0,5.44058964]
[1746577616873,6.60261945,1838.3,1837.9,5.44082395]
[1746577617048,6.60261945,1838.3,1838.0,5.44051847]
[1746577617049,0.068011,1838.3,1838.0,5.44051847]
[1746577617255,0.068011,1838.3,1837.9,5.44080235]
[1746577617455,5.50792683,1838.3,1837.9,5.44080235]
[1746577617978,0.068011,1838.3,1838.1,5.44029439]
[1746577618181,0.068011,1838.3,1838.1,5.44025147]
[1746577618345,0.068011,1838.3,1838.1,5.44023288]
[1746577618678,0.068011,1838.3,1838.1,5.44016865]
[1746577619076,0.068011,1838.3,1838.1,10.88032908]
[1746577619379,0.068011,1838.3,1838.0,5.44056332]
[1746577619546,0.068011,1838.3,1838.1,5.44037988]
[1746577619877,5.44029957,1838.2,1837.7,5.44158458]
[1746577620054,0.06801103,1838.1,1837.7,5.44158458]
[1746577620489,0.06801103,1838.1,1837.7,5.44138949]
[1746577620663,0.06801251,1838.2,1837.8,5.44118945]
[1746577621172,5.50831976,1838.2,1837.7,0.04646787]
[1746577621378,5.50831976,1838.2,1837.7,5.48788973]
[1746577621594,0.06801251,1838.2,1837.8,5.44105794]
[1746577621992,0.06801251,1838.2,1837.7,6.06868712]
[1746577622196,5.4404387,1838.1,1837.7,6.06862221]
[1746577622419,0.06801133,1838.1,1837.8,5.44125221]
[1746577622722,5.44110408,1837.9,1837.5,5.44198982]
[1746577623025,5.50857861,1838.1,1837.5,5.44198982]
[1746577623026,0.06802319,1838.0,1837.6,5.44166286]
[1746577623183,0.06801541,1838.1,1837.7,5.44147945]
[1746577623383,5.84548623,1838.4,1837.7,0.04646175]
[1746577623583,5.50799993,1838.3,1837.9,5.44088239]
[1746577623920,0.06800587,1838.3,1838.0,5.44066561]
[1746577624222,0.06800587,1838.3,1838.1,5.44027798]
[1746577624712,0.5758,1838.8,1838.2,5.43996536]
[1746577624899,0.64378905,1838.8,1838.1,6.52835868]
[1746577625093,5.43909756,1838.6,1838.1,5.44026124]
[1746577625395,0.06799656,1838.5,1838.2,5.4399572]
[1746577625595,5.50704491,1838.6,1838.1,5.44018651]
[1746577625920,5.50704491,1838.6,1838.1,5.44027052]
[1746577626072,5.43961926,1838.4,1837.9,8.073]
[1746577626276,3.0,1838.5,1838.1,5.44038095]
[1746577626277,8.50735662,1838.5,1838.1,5.44038095]
[1746577626704,0.06800028,1838.5,1838.1,7.99]
[1746577627006,5.43932596,1838.5,1838.2,1.4]
[1746577627209,5.43975732,1838.4,1838.2,1.4]
[1746577627527,5.4402836,1838.2,1837.8,0.758]
[1746577627876,0.06800623,1838.4,1837.8,6.19928306]
[1746577627877,5.4399538,1838.3,1837.8,6.19928306]
[1746577628072,10.94801864,1838.3,1837.8,2.22238359]
[1746577628317,5.50795633,1838.3,1837.8,0.758]
[1746577628517,5.44032383,1838.2,1837.8,0.758]
[1746577629041,5.44043724,1838.1,1837.8,0.758]
[1746577629224,5.44082238,1838.0,1837.6,8.074]
[1746577629378,5.44128849,1837.8,1837.6,8.074]
[1746577629578,5.85383567,1837.8,1837.6,8.074]
[1746577629883,5.44158458,1837.7,1837.6,8.074]
[1746577630093,5.85398918,1837.8,1837.6,8.074]
[1746577630298,5.85398918,1837.8,1837.3,19.594]
[1746577630299,3.48056675,1837.8,1837.3,19.594]
[1746577630592,5.44276928,1837.3,1836.9,0.7929]
[1746577630785,8.51110681,1837.2,1836.7,8.075]
[1746577632313,8.51110681,1837.2,1836.6,0.7929]
[1746577632490,8.51110681,1837.2,1836.6,0.83943709]
[1746577632899,13.5167022,1837.7,1836.6,0.83943709]
[1746577632900,4.13749812,1837.7,1836.6,0.83943709]
[1746577633099,5.44205373,1837.6,1837.2,0.85390971]
[1746577633335,0.06802768,1837.6,1837.2,0.8074]
[1746577633630,0.06802768,1837.6,1837.2,1.73697681]
[1746577633799,5.44225271,1837.5,1837.2,0.8074]
[1746577634140,5.51001605,1837.6,1837.1,21.84771267]
[1746577634315,5.44217823,1837.5,1837.1,16.4043681]
[1746577634637,5.51060896,1837.4,1837.1,16.4043681]
[1746577634940,5.5106302,1837.4,1837.1,16.4043681]
[1746577635304,5.51063378,1837.4,1837.1,0.4133681]
[1746577635623,5.44306553,1837.2,1837.1,0.4133681]
[1746577635806,5.51111011,1837.2,1837.1,0.4133681]
[1746577636133,8.51111011,1837.2,1837.1,0.4133681]
[1746577636622,3.0,1837.1,1836.1,3.49726311]
[1746577636941,5.44546898,1836.4,1836.1,3.49726311]
[1746577637140,5.44587575,1836.3,1836.0,8.8327]
[1746577637297,5.51362529,1836.4,1836.0,8.8327]
[1746577637504,5.51310543,1836.6,1836.2,5.44586811]
[1746577637716,0.06807437,1836.6,1836.1,0.04659156]
[1746577638045,3.06806955,1836.7,1836.3,5.44565557]
[1746577638243,8.44412818,1836.9,1836.4,5.44529157]
[1746577638455,3.0,1837.1,1836.5,8.6991]
[1746577638607,5.51122351,1837.2,1836.6,5.44469923]
[1746577638799,3.0,1837.1,1836.7,5.44442825]
[1746577639131,5.51122351,1837.2,1836.8,5.4440086]
[1746577639132,0.06805103,1837.2,1836.8,5.4440086]
[1746577639342,0.06804057,1837.3,1836.9,5.44382794]
[1746577639539,0.06804057,1837.3,1836.9,5.44377473]
[1746577639699,0.40707747,1837.4,1837.0,6.26573925]
[1746577639903,5.44174514,1837.7,1837.1,5.44318299]
[1746577640141,5.51007474,1837.6,1837.2,5.44300605]
[1746577640305,0.06802915,1837.6,1837.3,5.44268941]
[1746577640508,5.99272309,1837.7,1837.3,5.44268941]
[1746577640509,5.44165445,1837.7,1837.3,5.44268941]
[1746577640719,5.44165445,1837.7,1837.3,5.48918671]
[1746577641240,5.44165445,1837.7,1837.2,5.44302297]
[1746577641241,5.51002904,1837.6,1837.2,5.44302297]
[1746577642119,0.06802724,1837.6,1837.2,5.44302297]
[1746577642449,5.43997527,1838.3,1837.8,5.4411745]
[1746577642655,5.43997527,1838.3,1837.5,6.26387858]
[1746577642656,5.50813532,1838.2,1837.7,21.40941909]
[1746577642851,5.44064533,1838.1,1837.7,15.968]
[1746577643007,0.06801322,1838.0,1837.7,8.078]
[1746577643343,5.50852306,1838.1,1837.7,8.078]
[1746577643548,5.44118567,1837.9,1837.7,8.078]
[1746577643906,0.06801832,1837.9,1837.7,8.078]
[1746577644102,3.0,1838.1,1837.7,5.4414409]
[1746577644415,5.44099299,1837.9,1837.5,8.7038]
[1746577644622,0.06801838,1837.8,1837.5,8.7038]
[1746577644811,5.50942399,1837.8,1837.5,7.882]
[1746577645532,5.44112365,1837.9,1837.5,7.882]
[1746577645729,5.44144735,1837.8,1837.5,7.882]
[1746577645911,5.46323385,1837.7,1837.5,7.882]
[1746577646545,5.46323385,1837.7,1837.3,5.44264564]
[1746577646844,8.46312687,1837.7,1837.3,5.44254763]
[1746577647443,3.02153879,1837.7,1837.2,8.6263]
[1746577647644,3.43450467,1837.7,1837.3,5.44253928]
[1746577648358,3.43450467,1837.7,1837.2,15.7396361]
[1746577648555,8.87610263,1837.7,1837.3,5.44261121]
[1746577649032,3.43450467,1837.7,1837.4,5.44246902]
[1746577649233,3.43450467,1837.7,1837.3,5.44261121]
[1746577649421,8.87614384,1837.7,1837.3,5.44261121]
[1746577650147,3.43450467,1837.7,1837.3,5.44261121]
[1746577650346,3.43450467,1837.7,1837.4,5.44247115]
[1746577650557,8.87611254,1837.7,1837.3,5.44259311]
[1746577650907,5.44192405,1837.6,1837.2,14.06920935]
[1746577651114,3.41296588,1837.7,1837.2,14.06915673]
[1746577651309,3.41296588,1837.7,1837.2,0.7983]
[1746577651310,1.3775247,1837.7,1837.2,0.7983]
[1746577651515,0.41296588,1837.7,1837.4,5.44226471]
[1746577651754,3.0,1837.8,1837.3,0.05442557]
[1746577651962,0.41284328,1838.2,1838.0,5.4406964]
[1746577652261,0.02153879,1838.4,1838.0,5.44050524]
[1746577652484,3.02153879,1838.4,1838.0,5.44050524]
[1746577652673,0.5758,1838.7,1838.1,0.05440031]
[1746577652877,6.28766232,1838.9,1838.5,5.43907285]
[1746577653186,3.0,1838.8,1838.5,5.43907285]
[1746577653391,6.15029256,1838.9,1838.4,6.27111022]
[1746577653579,6.15029256,1838.9,1838.5,5.43920327]
[1746577653766,0.41689145,1838.9,1838.5,6.06631595]
[1746577653960,0.41689145,1838.9,1838.5,0.6270992]
[1746577653961,0.02153879,1838.9,1838.5,0.6270992]
[1746577654165,5.43828346,1838.9,1838.4,0.7774]
[1746577654396,3.02153879,1838.9,1838.5,5.43896421]
[1746577654593,0.02153879,1839.0,1838.6,5.43872278]
[1746577654895,0.02153879,1839.0,1838.6,5.43887267]
[1746577654896,5.87631839,1839.0,1838.6,5.43887267]
[1746577655101,5.45930433,1839.0,1838.6,0.05438312]
[1746577655290,6.01337952,1839.1,1838.6,5.49314695]
[1746577655496,5.43805246,1838.9,1838.5,5.43905587]
[1746577655703,5.43805246,1838.9,1838.5,5.43921077]
[1746577655878,5.45971058,1838.9,1838.6,15.474]
[1746577656485,0.02153879,1838.9,1838.6,15.474]
[1746577656683,3.0,1839.0,1838.6,15.474]
[1746577656684,3.4286619,1839.0,1838.6,15.474]
[1746577656884,5.4381732,1838.9,1838.6,15.474]
[1746577657085,8.84504563,1839.0,1838.6,20.91288467]
[1746577657294,0.40712311,1839.0,1838.7,0.05438392]
[1746577657600,6.08648267,1839.2,1838.7,0.05438392]
[1746577657813,5.43755464,1839.1,1838.7,5.43854716]
[1746577657977,5.43755464,1839.1,1838.6,20.91274231]
[1746577658177,5.43755464,1839.1,1838.7,5.43841942]
[1746577658620,5.43775332,1839.0,1838.6,23.00405983]
[1746577658804,5.84394906,1839.1,1838.6,23.00405983]
[1746577659002,5.84394906,1839.1,1838.6,13.2207856]
[1746577659176,5.45948262,1839.0,1838.7,7.642]
[1746577659979,5.84399454,1839.1,1838.7,7.642]
[1746577660180,0.4063327,1839.1,1838.8,5.49270642]
[1746577660401,6.08645152,1839.2,1838.8,0.05438134]
[1746577660603,3.64920376,1839.2,1838.8,5.49259192]
[1746577660812,3.64920376,1839.2,1838.8,0.05437571]
[1746577660989,9.08649449,1839.2,1838.8,5.43818289]
[1746577661523,9.08649449,1839.2,1839.0,5.43761514]
[1746577661524,1.06268445,1839.2,1839.0,5.43761514]
[1746577661696,1.06268445,1839.2,1839.0,5.49198592]
[1746577661890,1.06268445,1839.2,1839.0,10.92955601]
[1746577662098,1.06268445,1839.2,1839.0,5.49194087]
[1746577662298,1.06268445,1839.2,1839.0,0.05437078]
[1746577662620,1.06268445,1839.2,1838.9,6.22386726]
[1746577662989,1.06268445,1839.2,1839.0,0.05437029]
[1746577663191,1.06268445,1839.2,1839.0,5.49191093]
[1746577663396,1.06268445,1839.2,1839.1,5.43744222]
[1746577663595,1.06268445,1839.2,1839.0,0.05437029]
[1746577663780,1.06268445,1839.2,1839.0,5.43759373]
[1746577663983,1.06268445,1839.2,1838.9,0.786]
[1746577664218,1.06268445,1839.2,1838.6,7.782]
[1746577664419,0.02153879,1839.1,1838.7,6.26601826]
[1746577664605,5.45923006,1839.1,1838.7,13.82301826]
[1746577664920,0.02153879,1839.1,1838.9,5.43776451]
[1746577665121,1.06268445,1839.2,1838.9,5.43784838]
[1746577665322,1.06268445,1839.2,1839.0,5.43763257]
[1746577665513,1.06268445,1839.2,1839.0,5.43758669]
[1746577665698,1.06268445,1839.2,1839.1,5.43744222]
[1746577665899,1.06268445,1839.2,1839.0,5.43758813]
[1746577666102,1.06268445,1839.2,1838.9,7.542]
[1746577666432,1.06268445,1839.2,1838.9,12.97978929]
[1746577666724,1.06268445,1839.2,1838.9,18.41761939]
[1746577667036,1.06268445,1839.2,1839.0,5.43773628]
[1746577667392,6.49998089,1839.2,1838.8,20.73217797]
[1746577667593,2.55852342,1839.2,1838.9,5.43789897]
[1746577667825,8.0173584,1839.2,1838.8,20.73222667]
[1746577668003,12.15485652,1839.2,1838.8,20.73222667]
[1746577668183,5.43785839,1839.0,1838.6,5.43871502]
[1746577668388,3.0,1839.1,1838.7,0.05437862]
[1746577668593,3.0,1839.1,1838.8,5.43820443]
[1746577669015,8.4375376,1839.1,1838.7,5.43848012]
[1746577669329,5.43807702,1838.9,1838.6,5.43891323]
[1746577669627,5.43875446,1838.7,1837.7,6.2064352]
[1746577669823,3.0,1838.5,1838.2,5.43989572]
[1746577671326,3.0,1838.5,1838.3,5.43969252]
[1746577671498,0.02153879,1838.7,1838.4,5.43936238]
[1746577671699,0.43804438,1838.7,1838.4,5.43936238]
[1746577671910,0.02153879,1838.7,1838.4,5.43936238]
[1746577672806,6.01369871,1839.0,1838.6,5.43882007]
[1746577673006,0.02153879,1838.9,1838.2,6.23938142]
[1746577673206,3.58323691,1838.9,1838.2,0.7994]
[1746577673496,6.58323691,1838.9,1838.2,6.239351]
[1746577673836,3.56169812,1838.3,1837.6,5.44173672]
[1746577674151,8.46175082,1838.2,1837.8,5.44109866]
[1746577674298,0.5758,1838.5,1837.9,0.05441006]
[1746577674626,3.0,1838.2,1837.8,5.44114132]
[1746577674801,8.46178461,1838.2,1837.8,5.44114132]
[1746577675002,3.02153879,1838.2,1837.9,5.44096403]
[1746577675201,8.46166356,1838.2,1837.8,5.44114132]
[1746577675408,8.46166356,1838.2,1837.8,5.44111499]
[1746577676537,8.46166356,1838.2,1837.7,5.44157107]
[1746577676735,5.44062718,1838.1,1837.7,5.44157107]
[1746577676895,9.64261072,1838.2,1837.8,5.44116281]
[1746577677102,9.66414951,1838.2,1837.8,5.44116281]
[1746577677654,3.39830166,1838.2,1837.9,5.44081472]
[1746577677795,0.39830166,1838.2,1838.0,10.88117962]
[1746577678010,8.46105209,1838.4,1838.0,5.44049585]
[1746577678446,5.43985224,1838.3,1837.9,5.44084557]
[1746577678614,8.43967457,1838.4,1837.9,5.4407634]
[1746577678816,8.46121336,1838.4,1838.0,5.44066787]
[1746577679548,8.4612331,1838.4,1838.0,5.44069358]
[1746577680343,3.02153879,1838.4,1838.1,5.44036808]
[1746577680552,3.02153879,1838.4,1838.3,5.43980851]
[1746577680553,0.40152893,1838.4,1838.3,5.43980851]
[1746577680752,0.02153879,1838.7,1838.4,5.43949996]
[1746577681043,5.46018475,1838.7,1838.2,5.49430683]
[1746577681243,5.43934259,1838.5,1838.1,12.92023292]
[1746577681421,0.02153879,1838.4,1838.2,5.43992355]
[1746577681609,0.42380679,1838.6,1838.3,5.43968849]
[1746577681812,0.402268,1838.6,1838.3,5.43961315]
[1746577682012,3.02153879,1838.7,1838.3,5.43980851]
[1746577682245,8.46019756,1838.7,1838.3,5.43980851]
[1746577682547,3.56169812,1838.6,1838.3,5.43980777]
[1746577682722,0.02153879,1838.5,1838.2,5.4398407]
[1746577683044,5.46085978,1838.5,1838.1,12.92027182]
[1746577683215,5.46085978,1838.5,1838.2,5.43987506]
[1746577683216,0.02153879,1838.5,1838.2,5.43987506]
[1746577683536,9.00065187,1838.6,1838.2,5.43987506]
[1746577683845,5.46084336,1838.5,1838.1,12.92029047]
[1746577684030,5.98580708,1838.4,1838.1,7.48]
[1746577684219,6.03716189,1838.3,1837.9,5.44082116]
[1746577684420,5.44012798,1838.2,1837.8,5.44110492]
[1746577684616,0.02153879,1838.2,1837.9,5.44098175]
[1746577684822,4.15903691,1838.3,1838.0,5.44056747]
[1746577685035,9.59887893,1838.3,1838.0,5.44056747]
[1746577685218,9.59887893,1838.3,1837.9,10.93594337]
[1746577685556,5.44016098,1838.2,1837.8,5.44107599]
[1746577685855,6.56169812,1838.0,1837.2,6.27486372]
[1746577686012,5.46268854,1837.9,1837.5,5.44197956]
[1746577686211,5.46268854,1837.9,1837.6,5.44177589]
[1746577686212,0.02153879,1837.9,1837.6,5.44177589]
[1746577686423,5.46257064,1837.9,1837.5,5.4419377]
[1746577686630,0.02153879,1837.9,1837.6,5.44176642]
[1746577686920,4.50390399,1838.2,1837.6,5.49615053]
[1746577687144,0.02153879,1838.1,1837.8,5.44110551]
[1746577687343,0.02153879,1838.1,1837.9,5.44098431]
[1746577687659,3.02153879,1838.2,1837.9,5.44083141]
[1746577688227,3.02153879,1838.2,1838.0,5.44068835]
[1746577688450,3.0,1838.3,1838.1,5.44014161]
[1746577688748,3.0,1838.3,1838.1,5.44010787]
[1746577689228,0.5758,1838.5,1838.2,5.44010445]
[1746577689431,3.98619954,1838.6,1838.3,5.43967549]
[1746577689634,3.0,1838.5,1838.3,5.43967549]
[1746577689820,3.0,1838.5,1838.2,5.43987155]
[1746577690168,3.0,1838.5,1838.3,5.4397945]
[1746577690556,3.96466075,1838.6,1838.4,5.43951261]
[1746577690852,0.40296263,1838.6,1838.5,5.43921675]
[1746577691018,6.03540464,1838.9,1838.5,5.43921675]
[1746577691218,3.0,1838.8,1838.5,10.87820488]
[1746577691429,0.41319082,1838.8,1838.6,5.43890819]
[1746577691632,0.5758,1838.9,1838.6,5.43890819]
[1746577691951,3.0,1838.7,1838.3,12.91758301]
[1746577692156,3.02153879,1838.7,1838.3,18.35716498]
[1746577692350,3.02153879,1838.7,1838.3,12.91758197]
[1746577692557,4.42924348,1838.7,1838.3,7.478]
[1746577692857,5.43907412,1838.6,1838.3,7.478]
[1746577693060,3.02153879,1838.5,1838.2,7.508]
[1746577693222,5.43993383,1838.3,1837.9,6.21758721]
[1746577693423,3.0,1838.3,1837.9,6.21758721]
[1746577693922,8.84814767,1838.3,1837.7,18.98945097]
[1746577694147,8.84814767,1838.3,1837.8,5.44114718]
[1746577694148,3.56169812,1838.1,1837.8,5.44114718]
[1746577694349,3.56169812,1838.1,1837.7,12.94942152]
[1746577694560,0.5758,1837.9,1837.7,7.508]
[1746577694768,6.01684636,1837.9,1837.7,7.508]
[1746577694965,8.4417226,1837.7,1837.3,12.95053115]
[1746577695124,8.46326139,1837.7,1837.3,7.508]
[1746577695628,5.44191636,1837.6,1837.3,7.508]
[1746577695822,3.0,1837.4,1837.2,3.49726311]
[1746577696224,12.60180619,1837.3,1837.2,0.54816615]
[1746577696539,14.66116819,1837.3,1837.2,0.54816615]
[1746577696944,14.78328636,1837.3,1837.2,0.54816615]
[1746577697264,15.33328636,1837.3,1837.2,0.54816615]
[1746577697447,5.44383989,1837.0,1836.7,4.48002213]
[1746577697651,3.02153879,1836.9,1836.5,5.44494479]
[1746577697960,0.02153879,1836.9,1836.6,5.44460081]
[1746577698140,0.02153879,1837.0,1836.7,5.44443415]
[1746577698471,5.44369812,1837.0,1836.6,5.44473455]
[1746577698834,0.02153879,1837.1,1836.5,5.44500747]
[1746577698835,8.46549341,1836.9,1836.5,5.44500747]
[1746577699059,3.0,1836.8,1836.4,5.44524853]
[1746577699225,3.0,1836.8,1836.4,5.44525034]
[1746577699427,3.0,1836.8,1836.4,10.890497]
[1746577699627,0.02153879,1836.9,1836.5,5.44503509]
[1746577699831,3.02153879,1836.9,1836.6,5.44482139]
[1746577700023,3.02153879,1836.9,1836.3,8.286]
[1746577700230,8.46566768,1836.9,1836.4,5.44521484]
[1746577700440,8.46554118,1836.9,1836.4,5.44529054]
[1746577700649,3.0,1836.7,1836.3,5.44555606]
[1746577700851,3.0,1836.7,1836.2,34.561]
[1746577700852,0.02153879,1836.7,1836.2,32.53183846]
[1746577701055,5.46619647,1836.7,1836.2,27.086]
[1746577701264,3.0,1836.5,1836.2,27.086]
[1746577701861,3.40894308,1836.5,1836.2,27.086]
[1746577702173,3.40894308,1836.5,1836.1,5.44628304]
[1746577702174,9.43009395,1836.5,1836.1,5.44628304]
[1746577702536,8.8540903,1836.5,1836.0,5.44646354]
[1746577702729,3.0,1836.3,1836.0,5.44646354]
[1746577702929,3.0,1836.3,1836.0,7.475]
[1746577703470,8.44583109,1836.3,1836.0,7.475]
[1746577703667,3.0,1836.3,1836.0,5.44651456]
[1746577703868,0.40894308,1836.5,1836.0,1.1437803]
[1746577704184,3.0,1836.7,1836.3,5.44559411]
[1746577704367,0.02153879,1836.6,1836.2,5.44589314]
[1746577704573,3.0,1836.5,1836.1,5.44610839]
[1746577704737,3.0,1836.5,1836.2,5.44583558]
[1746577705333,3.40151477,1836.5,1836.2,5.44583558]
[1746577705669,0.40151477,1836.5,1836.3,5.49991266]
[1746577705864,3.0,1836.7,1836.3,5.49991266]
[1746577706071,3.0,1836.7,1836.3,5.44545764]
[1746577706266,3.0,1836.7,1836.4,5.44539626]
[1746577706575,3.56169812,1836.9,1836.6,5.44470411]
[1746577706770,3.0,1836.8,1836.6,5.44470411]
[1746577707073,3.0,1836.8,1836.5,5.44501007]
[1746577707282,3.64997714,1836.8,1836.6,5.44483818]
[1746577707435,3.0,1836.8,1836.6,5.44483818]
[1746577707786,3.0,1836.8,1836.7,5.44454728]
[1746577708014,3.0,1837.1,1836.8,5.44422111]
[1746577708301,9.57983663,1837.5,1837.1,5.4433147]
[1746577708485,0.5758,1837.8,1837.3,5.44262548]
[1746577708670,0.02153879,1837.8,1837.6,0.7822]
[1746577708876,0.02153879,1838.1,1837.6,6.27849285]
[1746577709186,0.02153879,1838.1,1837.6,7.45054802]
[1746577709386,4.73645307,1838.2,1837.6,27.07554802]
[1746577709697,4.73645307,1838.2,1837.6,27.02113588]
[1746577709905,2.79932871,1837.7,1837.6,27.06883588]
[1746577710110,6.01453403,1838.7,1838.2,10.8799599]
[1746577710400,3.0,1838.6,1838.3,7.474]
[1746577710573,11.02305442,1838.7,1838.3,12.91378527]
[1746577710906,3.0,1838.6,1838.4,5.43949304]
[1746577711078,5.56272895,1838.7,1838.4,5.43949304]
[1746577711274,3.0,1838.6,1838.3,7.474]
[1746577711497,0.02153879,1838.5,1838.3,7.474]
[1746577711865,5.46099024,1838.5,1838.1,7.48]
[1746577712396,0.02153879,1838.5,1838.1,7.48]
[1746577712611,5.43951261,1838.4,1838.1,7.48]
[1746577712820,9.26530445,1838.2,1838.1,7.48]
[1746577712988,9.26530445,1838.2,1837.8,7.473]
[1746577713304,4.26245242,1838.2,1837.8,12.91413183]
[1746577713800,9.70259743,1838.2,1837.8,12.91413183]
[1746577714100,3.0,1838.1,1837.8,7.473]
[1746577714409,3.0,1838.1,1837.8,12.91423689]
[1746577714880,0.41571363,1838.2,1838.0,5.44045412]
[1746577715069,3.0,1838.4,1838.0,5.44055409]
[1746577715265,3.0,1838.4,1838.1,5.44039752]
[1746577715463,4.75778251,1838.7,1838.1,1.14249143]
[1746577715678,4.75778251,1838.7,1838.3,5.43966039]
[1746577715877,3.0,1838.6,1838.3,5.34059852]
[1746577716177,3.0,1838.6,1838.2,12.91792565]
[1746577716381,3.02153879,1838.6,1838.2,12.91804913]
[1746577716581,8.4390419,1838.6,1838.2,12.91804913]
[1746577716781,3.0,1838.6,1838.3,5.43980649]
[1746577716985,0.41108439,1838.7,1838.5,5.43921675]
[1746577717309,3.0,1838.9,1838.6,5.4933062]
[1746577717464,9.78452554,1839.0,1838.6,5.43892091]